bitfinex-derivatives/quotes_SOLF0:USTF0_20250321
["timestamp","ask_amount","ask_price","bid_price","bid_amount"]
[1742565613730,30.68,127.14,127.06,56.47991081]
[1742565613920,50.76191081,127.16,127.08,20.08191081]
[1742565614226,8.3897,127.19,127.08,20.08191081]
[1742565614227,50.76191081,127.18,127.1,20.08191081]
[1742565614427,50.76191081,127.18,127.14,7.868]
[1742565614631,0.05633164,127.15,127.13,30.73511376]
[1742565614817,0.05633164,127.15,127.13,0.05511376]
[1742565619029,0.05633164,127.15,127.14,7.8683]
[1742565619239,0.05633164,127.15,127.13,0.05511376]
[1742565619420,7.8683,127.14,127.13,0.05511376]
[1742565619627,30.73633164,127.15,127.13,0.05511376]
[1742565620433,0.05633164,127.15,127.13,0.05511376]
[1742565620634,0.05633164,127.15,127.14,7.8683]
[1742565620830,0.05633164,127.15,127.13,0.05511376]
[1742565621235,0.05633164,127.15,127.14,7.8683]
[1742565621833,20.08191081,127.21,127.17,7.8661]
[1742565622136,27.94621081,127.21,127.17,7.8661]
[1742565622334,58.62621081,127.21,127.17,7.8661]
[1742565622531,50.76191081,127.21,127.17,7.8661]
[1742565622730,38.5442,127.21,127.18,7.8658]
[1742565622930,30.68,127.21,127.15,30.68]
[1742565623136,38.59872935,127.21,127.18,0.05379145]
[1742565623635,30.73452935,127.21,127.18,0.05379145]
[1742565624032,50.81644016,127.21,127.18,0.05379145]
[1742565624533,50.81644016,127.21,127.12,30.68]
[1742565624534,20.08191081,127.19,127.12,30.68]
[1742565624729,7.8686,127.14,127.1,30.68]
[1742565625128,20.08191081,127.15,127.1,38.5507]
[1742565625437,7.8684,127.14,127.1,30.68]
[1742565625835,20.08191081,127.16,127.1,30.68]
[1742565626037,0.05840158,127.13,127.11,0.05422717]
[1742565626340,7.92730158,127.13,127.11,0.05422717]
[1742565626839,0.05840158,127.13,127.11,0.05422717]
[1742565627033,7.8695,127.12,127.11,0.05422717]
[1742565629238,27.95141081,127.12,127.11,2.717e-05]
[1742565630041,20.08191081,127.12,127.05,33.4323]
[1742565630238,30.66,127.11,127.05,33.4323]
[1742565630437,7.8724,127.08,127.05,33.4323]
[1742565630644,30.66,127.11,127.05,33.4323]
[1742565630846,20.08191081,127.1,127.04,259.64]
[1742565631040,7.8724,127.08,127.07,0.05697009]
[1742565634238,7.8739,127.05,127.04,259.64]
[1742565635244,7.8752,127.03,127.0,10.809]
[1742565635640,7.8752,127.03,127.0,2.98266799]
[1742565635833,7.876,127.02,127.0,0.05026799]
[1742565636037,0.0507185,127.03,127.0,0.05026799]
[1742565636440,7.8757,127.02,127.0,0.05026799]
[1742565636739,70.84382162,127.02,126.91,438.87983375]
[1742565636938,53.70311081,127.02,126.93,63.20492786]
[1742565637445,7.8767,127.01,126.96,7.8791]
[1742565637638,30.68,127.02,126.95,20.08191081]
[1742565637838,0.0531977,127.0,126.97,0.05545187]
[1742565639246,30.68,126.99,126.97,0.05545187]
[1742565639944,0.0531977,127.0,126.97,0.05545187]
[1742565644147,0.0531977,127.0,126.97,7.93395187]
[1742565644446,0.0531977,127.0,126.97,0.05545187]
[1742565644847,0.0531977,127.0,126.98,7.8781]
[1742565646349,0.0531977,127.0,126.97,0.05545187]
[1742565646952,0.0531977,127.0,126.98,7.8777]
[1742565647347,0.0531977,127.0,126.99,7.8776]
[1742565650550,20.08191081,127.06,126.99,30.68]
[1742565650748,41.3691,127.07,126.99,30.68]
[1742565650943,30.68,127.07,126.99,30.68]
[1742565651650,0.0569519,127.04,127.03,7.8748]
[1742565651852,0.0569519,127.04,127.02,0.04986386]
[1742565652044,0.0569519,127.04,127.02,7.92536386]
[1742565652646,0.0569519,127.04,127.03,7.8751]
[1742565653045,0.0569519,127.04,127.02,0.04986386]
[1742565653956,7.9315519,127.04,127.02,0.04986386]
[1742565654653,7.8751,127.03,127.02,0.04986386]
[1742565656551,7.88,127.03,126.92,259.86]
[1742565656746,20.08191081,126.99,126.92,259.86]
[1742565656955,50.76191081,126.99,126.93,7.8809]
[1742565657155,7.8785,126.98,126.93,7.8809]
[1742565657451,50.76191081,126.99,126.93,7.8809]
[1742565657651,0.05039674,126.97,126.95,0.04969463]
[1742565657849,7.92949674,126.97,126.95,0.04969463]
[1742565658049,20.13230755,126.97,126.95,0.04969463]
[1742565658258,30.68,126.96,126.87,270.66934448]
[1742565658454,20.08191081,126.94,126.87,270.66934448]
[1742565658756,20.08191081,126.94,126.87,290.75125529]
[1742565659256,56.57461081,126.96,126.88,2.9461]
[1742565659459,0.05314871,126.92,126.89,50.82246819]
[1742565659950,0.05314871,126.92,126.91,7.8822]
[1742565660154,0.05314871,126.92,126.9,5.6718]
[1742565660749,30.68,126.99,126.91,20.08191081]
[1742565660944,30.68,126.99,126.92,30.68]
[1742565661144,7.8785,126.98,126.94,7.8801]
[1742565661554,7.8785,126.98,126.93,259.9]
[1742565661756,7.8785,126.98,126.94,7.8802]
[1742565662054,7.93652681,126.97,126.94,0.05472676]
[1742565662254,0.05762681,126.97,126.94,0.05472676]
[1742565662954,7.8801,126.95,126.94,0.05472676]
[1742565663964,0.05762681,126.97,126.94,0.05472676]
[1742565664459,7.8798,126.96,126.94,0.05472676]
[1742565664659,0.05762681,126.97,126.94,0.05472676]
[1742565665058,0.05762681,126.97,126.94,30.73472676]
[1742565665655,7.93692681,126.97,126.94,38.61522676]
[1742565666052,0.05762681,126.97,126.94,30.73472676]
[1742565668156,30.68,127.03,126.95,3.0034]
[1742565668357,30.68,127.05,126.95,35.17539285]
[1742565668564,30.68,127.05,126.96,2.8461]
[1742565668754,30.68,127.05,126.97,30.68]
[1742565669156,7.8767,127.01,127.0,0.05855393]
[1742565670563,7.8767,127.01,127.0,5.393e-05]
[1742565670761,40.04869285,127.01,127.0,5.393e-05]
[1742565670962,32.17199285,127.01,126.94,30.68]
[1742565671762,32.17199285,127.01,126.96,7.879]
[1742565671962,7.8775,127.0,126.94,30.68]
[1742565672268,7.93485653,127.0,126.97,0.05205504]
[1742565672460,0.05735653,127.0,126.97,0.05205504]
[1742565672961,7.8776,126.99,126.97,0.05205504]
[1742565673166,0.05735653,127.0,126.97,0.05205504]
[1742565673668,7.8782,126.98,126.97,0.05205504]
[1742565675669,38.5579,126.99,126.97,0.05205504]
[1742565675863,30.68,126.99,126.97,0.05205504]
[1742565676370,7.8782,126.98,126.97,0.05205504]
[1742565678465,7.8782,126.98,126.97,5.504e-05]
[1742565678761,7.8813,126.93,126.92,259.94]
[1742565681869,0.05013965,126.94,126.92,259.94]
[1742565682266,0.05013965,126.94,126.92,290.62]
[1742565683866,0.05013965,126.94,126.92,259.94]
[1742565684377,7.8813,126.93,126.92,259.94]
[1742565685278,7.8819,126.92,126.91,0.05021544]
[1742565687879,7.8816,126.93,126.91,0.05021544]
[1742565688079,0.05013965,126.94,126.91,0.05021544]
[1742565688685,7.8819,126.92,126.91,0.05021544]
[1742565688890,0.05013965,126.94,126.91,0.05021544]
[1742565689290,0.05013965,126.94,126.92,38.5615]
[1742565689684,0.05013965,126.94,126.93,7.8813]
[1742565690088,7.93093965,126.94,126.92,30.68]
[1742565690593,7.8813,126.93,126.92,30.68]
[1742565690888,0.05013965,126.94,126.91,0.05021544]
[1742565691090,7.8819,126.92,126.91,0.05021544]
[1742565691496,0.05013965,126.94,126.91,0.05021544]
[1742565692185,7.93113965,126.94,126.92,7.8818]
[1742565692390,7.93113965,126.94,126.91,0.05021544]
[1742565692588,0.05013965,126.94,126.91,0.05021544]
[1742565692791,7.8817,126.93,126.91,0.05021544]
[1742565693396,7.8819,126.92,126.91,0.05021544]
[1742565695189,7.8816,126.93,126.91,7.93271544]
[1742565695587,0.05013965,126.94,126.91,7.93271544]
[1742565695997,0.05013965,126.94,126.91,0.05021544]
[1742565696590,0.05013965,126.94,126.92,7.8816]
[1742565696782,0.05013965,126.94,126.91,0.05021544]
[1742565697398,7.8819,126.92,126.91,0.05021544]
[1742565704805,7.8816,126.93,126.91,0.05021544]
[1742565705400,7.8816,126.93,126.91,7.93241544]
[1742565706817,0.05013965,126.94,126.91,0.05021544]
[1742565707507,7.8819,126.92,126.91,0.05021544]
[1742565707702,0.05013965,126.94,126.91,0.05021544]
[1742565707907,0.05013965,126.94,126.91,7.93271544]
[1742565708304,0.05013965,126.94,126.91,0.05021544]
[1742565708910,0.05013965,126.94,126.92,7.8815]
[1742565709216,0.05013965,126.94,126.91,0.05021544]
[1742565709412,7.8819,126.92,126.91,0.05021544]
[1742565714419,27.99729031,126.93,126.91,0.05021544]
[1742565714914,20.11569031,126.93,126.91,0.05021544]
[1742565715120,7.8819,126.92,126.91,0.05021544]
[1742565715718,7.8816,126.93,126.91,0.05021544]
[1742565715919,0.05013965,126.94,126.91,0.05021544]
[1742565716225,7.93113965,126.94,126.91,0.05021544]
[1742565716719,0.05013965,126.94,126.91,0.05021544]
[1742565717411,7.8819,126.92,126.91,0.05021544]
[1742565718520,7.8817,126.93,126.91,0.05021544]
[1742565719016,7.8813,126.93,126.91,0.05021544]
[1742565719918,7.8819,126.92,126.91,0.05021544]
[1742565720717,30.71013965,126.94,126.91,0.05021544]
[1742565720917,0.05013965,126.94,126.91,30.71021544]
[1742565721318,7.93103965,126.94,126.91,30.71021544]
[1742565721622,0.05013965,126.94,126.92,7.8816]
[1742565721824,7.93093965,126.94,126.91,30.71021544]
[1742565722021,0.05013965,126.94,126.91,30.71021544]
[1742565722522,7.8819,126.92,126.91,0.05021544]
[1742565724321,0.05013965,126.94,126.91,0.05021544]
[1742565724721,7.8817,126.93,126.91,0.05021544]
[1742565725020,0.05013965,126.94,126.91,0.05021544]
[1742565725320,0.05013965,126.94,126.92,7.8819]
[1742565726125,0.05013965,126.94,126.93,7.8813]
[1742565726313,0.05013965,126.94,126.91,0.05021544]
[1742565726824,0.05013965,126.94,126.92,7.8816]
[1742565727022,0.05013965,126.94,126.91,0.05021544]
[1742565727616,0.05013965,126.94,126.92,7.8815]
[1742565727823,7.93103965,126.94,126.92,7.8815]
[1742565728323,7.8816,126.93,126.91,0.05021544]
[1742565728516,0.05013965,126.94,126.91,0.05021544]
[1742565729027,0.05013965,126.94,126.93,7.8813]
[1742565729532,0.05013965,126.94,126.91,0.05021544]
[1742565729727,20.16582996,126.94,126.91,0.05021544]
[1742565730030,50.82582996,126.94,126.91,0.05021544]
[1742565730327,7.8819,126.92,126.91,0.05021544]
[1742565732921,7.8816,126.93,126.91,0.05021544]
[1742565733122,0.05013965,126.94,126.91,0.05021544]
[1742565733528,0.05013965,126.94,126.92,7.8816]
[1742565734035,7.93083965,126.94,126.91,0.05021544]
[1742565734237,20.16582996,126.94,126.91,0.05021544]
[1742565734433,7.8819,126.92,126.91,0.05021544]
[1742565735430,27.99759031,126.92,126.91,0.05021544]
[1742565736546,7.8848,126.88,126.85,290.74]
[1742565736752,50.77569031,126.9,126.82,43.12301705]
[1742565737038,20.11569031,126.88,126.82,73.78301705]
[1742565737240,50.77569031,126.9,126.82,73.78301705]
[1742565737442,50.77569031,126.9,126.85,7.8862]
[1742565737643,0.05501345,126.87,126.85,0.05257632]
[1742565738038,7.94031345,126.87,126.85,0.05257632]
[1742565738338,0.05501345,126.87,126.85,0.05257632]
[1742565738548,0.05501345,126.87,126.85,7.93867632]
[1742565738846,0.05501345,126.87,126.85,30.71257632]
[1742565739237,0.05501345,126.87,126.86,7.8857]
[1742565739434,0.05501345,126.87,126.85,36.56327632]
[1742565739636,0.05501345,126.87,126.86,7.8857]
[1742565740649,30.66,126.92,126.88,7.8838]
[1742565740944,7.8828,126.91,126.88,7.8838]
[1742565741145,7.8828,126.91,126.89,7.8838]
[1742565741645,0.05906095,126.91,126.9,7.8827]
[1742565741848,0.05906095,126.91,126.89,30.71517763]
[1742565742040,7.94166095,126.91,126.89,30.71517763]
[1742565742439,0.05906095,126.91,126.89,0.05517763]
[1742565742648,7.8832,126.9,126.89,0.05517763]
[1742565743746,7.8832,126.9,126.83,260.12]
[1742565743747,20.11569031,126.9,126.83,260.12]
[1742565744048,20.11569031,126.87,126.83,260.12]
[1742565744234,7.8869,126.84,126.83,260.12]
[1742565745142,7.8875,126.83,126.82,43.17320578]
[1742565746149,20.1749948,126.85,126.82,43.17320578]
[1742565746541,7.8875,126.83,126.82,43.17320578]
[1742565746744,7.8875,126.83,126.82,0.05018873]
[1742565747041,20.1749948,126.85,126.82,0.05018873]
[1742565747042,0.05930449,126.85,126.82,0.05018873]
[1742565747443,0.05930449,126.85,126.83,7.8869]
[1742565747846,0.05930449,126.85,126.82,0.05018873]
[1742565749651,7.8872,126.84,126.82,0.05018873]
[1742565749851,0.05930449,126.85,126.82,0.05018873]
[1742565750250,38.60590449,126.85,126.82,0.05018873]
[1742565750751,30.71930449,126.85,126.83,7.8874]
[1742565750947,0.05930449,126.85,126.82,30.71018873]
[1742565752751,0.05930449,126.85,126.82,50.82587904]
[1742565754042,23.05699031,126.93,126.84,20.11569031]
[1742565754239,33.6013,126.93,126.86,20.11569031]
[1742565754452,26.04009031,126.95,126.86,20.11569031]
[1742565754652,7.882,126.92,126.86,22.88269031]
[1742565755247,0.05724462,126.9,126.89,7.8833]
[1742565756255,23.05699031,126.97,126.93,7.8812]
[1742565756443,7.8798,126.96,126.93,7.8812]
[1742565756648,2.9413,126.97,126.91,30.66]
[1742565756948,2.9413,126.97,126.92,7.8816]
[1742565757256,33.6013,126.97,126.91,38.542]
[1742565757553,7.8806,126.95,126.93,0.05876299]
[1742565757742,0.05716146,126.96,126.93,0.05876299]
[1742565757943,20.11569031,126.95,126.93,0.05876299]
[1742565758145,20.11569031,126.95,126.88,30.66]
[1742565758146,30.66,126.94,126.88,30.66]
[1742565758351,33.6397,126.94,126.88,30.66]
[1742565758550,7.8837,126.9,126.86,30.66]
[1742565759154,7.8837,126.9,126.86,38.5456]
[1742565759450,0.05794351,126.89,126.87,0.05192289]
[1742565759656,7.8829,126.91,126.87,0.05192289]
[1742565759850,0.05182723,126.9,126.87,0.05192289]
[1742565760357,7.93502723,126.9,126.87,0.05192289]
[1742565761156,0.05182723,126.9,126.87,7.93682289]
[1742565761350,0.05182723,126.9,126.87,0.05192289]
[1742565761756,0.05182723,126.9,126.87,2.82482289]
[1742565762262,7.881,126.94,126.87,2.82482289]
[1742565762452,7.881,126.94,126.88,32.21073615]
[1742565762650,33.5813,126.97,126.89,30.64]
[1742565762849,33.5813,126.97,126.89,38.5235]
[1742565763051,33.5813,126.97,126.89,30.64]
[1742565763453,0.05884343,126.94,126.92,0.05403401]
[1742565763647,30.69884343,126.94,126.92,0.05403401]
[1742565763852,7.8813,126.93,126.92,0.05403401]
[1742565764451,7.8813,126.93,126.92,3.401e-05]
[1742565764652,40.09203615,126.93,126.92,3.401e-05]
[1742565764853,42.96103615,126.93,126.92,3.401e-05]
[1742565765658,7.8857,126.86,126.85,260.22]
[1742565767057,0.05508111,126.87,126.84,0.05344085]
[1742565767456,7.8863,126.85,126.84,0.05344085]
[1742565769256,7.8863,126.85,126.84,4.085e-05]
[1742565770858,5.831,126.86,126.84,4.085e-05]
[1742565770859,13.7168,126.86,126.84,4.085e-05]
[1742565771058,0.05508111,126.87,126.84,4.085e-05]
[1742565771857,7.94028111,126.87,126.84,4.085e-05]
[1742565772064,0.05508111,126.87,126.84,4.085e-05]
[1742565772362,7.94048111,126.87,126.84,4.085e-05]
[1742565772864,0.05508111,126.87,126.84,4.085e-05]
[1742565774055,35.01351726,126.87,126.84,4.085e-05]
[1742565774258,37.83141726,126.87,126.84,4.085e-05]
[1742565776456,5.62068111,126.87,126.84,4.085e-05]
[1742565779256,7.8857,126.86,126.84,4.085e-05]
[1742565779461,30.64,126.85,126.84,4.085e-05]
[1742565780358,70.73703615,126.85,126.84,4.085e-05]
[1742565781065,38.5263,126.85,126.84,4.085e-05]
[1742565783266,7.8906,126.78,126.77,30.64]
[1742565783465,7.8906,126.78,126.76,5.6916]
[1742565783767,7.8906,126.78,126.76,2.7772]
[1742565784163,30.64,126.82,126.75,298.7722]
[1742565784363,0.05982388,126.78,126.76,0.05285367]
[1742565786670,7.8912,126.77,126.76,0.05285367]
[1742565787368,7.8932,126.74,126.71,7.8947]
[1742565788062,30.66,126.75,126.72,7.8943]
[1742565788569,30.7156988,126.75,126.73,7.8936]
[1742565788763,0.0556988,126.75,126.72,0.03839838]
[1742565788970,0.0556988,126.75,126.74,20.16045223]
[1742565789159,23.66,126.89,126.74,20.16045223]
[1742565789160,50.80045223,126.83,126.74,20.16045223]
[1742565789363,50.80045223,126.83,126.76,20.16045223]
[1742565789669,7.8894,126.8,126.77,7.8908]
[1742565790068,50.80045223,126.83,126.76,50.80045223]
[1742565790269,0.05529818,126.8,126.78,7.8903]
[1742565790465,0.05529818,126.8,126.77,0.05097873]
[1742565790673,38.5466,126.85,126.82,7.8878]
[1742565791165,20.16045223,126.87,126.82,7.8878]
[1742565791166,30.66,126.87,126.82,7.8878]
[1742565791367,7.887,126.84,126.82,7.8878]
[1742565791562,30.66,126.87,126.82,7.8878]
[1742565791767,7.8865,126.85,126.82,7.8878]
[1742565791972,7.8865,126.85,126.83,0.05351574]
[1742565792164,0.05226571,126.86,126.83,0.05351574]
[1742565792770,7.8866,126.85,126.83,0.05351574]
[1742565792971,0.05226571,126.86,126.83,0.05351574]
[1742565793668,0.05226571,126.86,126.85,7.8863]
[1742565794070,0.05226571,126.86,126.84,7.8869]
[1742565794472,0.05226571,126.86,126.83,30.69351574]
[1742565794671,30.64,126.92,126.84,292.54098397]
[1742565794977,7.8829,126.91,126.84,295.38068397]
[1742565795169,5.5844,126.93,126.84,295.38068397]
[1742565795170,36.2244,126.93,126.84,295.38068397]
[1742565795474,7.8827,126.91,126.84,295.38068397]
[1742565795676,36.2244,126.93,126.87,7.8847]
[1742565795875,0.05139284,126.89,126.88,30.64]
[1742565796070,36.2244,126.93,126.88,30.64]
[1742565796269,0.05976164,126.9,126.88,30.64]
[1742565796468,7.8808,126.94,126.88,30.64]
[1742565796666,5.6907,126.97,126.88,62.93934728]
[1742565796871,74.237029,126.98,126.92,7.8815]
[1742565797070,30.64,126.98,126.92,38.5215]
[1742565797274,30.64,126.98,126.92,30.64]
[1742565797973,0.05991143,126.96,126.94,0.05225068]
[1742565798274,7.8804,126.95,126.94,0.05225068]
[1742565798974,0.05991143,126.96,126.94,0.05225068]
[1742565799576,7.8801,126.95,126.94,0.05225068]
[1742565802074,38.5001,126.95,126.94,5.068e-05]
[1742565807379,7.8845,126.88,126.86,265.6437]
[1742565807677,30.62,126.92,126.86,265.6437]
[1742565807877,7.8835,126.9,126.87,7.8847]
[1742565808176,30.62,126.92,126.86,265.6437]
[1742565808579,7.93535085,126.9,126.88,0.06025613]
[1742565809080,0.05185085,126.9,126.89,7.8838]
[1742565809274,7.881,126.94,126.88,30.68025613]
[1742565809679,7.881,126.94,126.9,7.8828]
[1742565810074,7.8813,126.93,126.88,30.62]
[1742565810275,7.8813,126.93,126.9,7.8828]
[1742565810483,0.05189272,126.92,126.9,7.8828]
[1742565811184,0.05189272,126.92,126.89,0.05791294]
[1742565812471,0.05189272,126.92,126.91,7.8825]
[1742565812679,0.05189272,126.92,126.91,38.5025]
[1742565814484,0.05189272,126.92,126.91,30.62]
[1742565814689,7.93379272,126.92,126.91,30.62]
[1742565814882,0.05189272,126.92,126.91,30.62]
[1742565815275,0.05189272,126.92,126.89,30.65791294]
[1742565815483,0.05189272,126.92,126.89,0.05791294]
[1742565815883,7.8832,126.9,126.89,0.05791294]
[1742565821398,7.8832,126.9,126.82,25.72110937]
[1742565821399,7.8865,126.85,126.82,36.1812]
[1742565821703,20.13990937,126.89,126.82,36.1812]
[1742565821993,7.8861,126.86,126.82,36.1812]
[1742565822192,7.8861,126.86,126.83,7.8872]
[1742565822595,7.93895816,126.86,126.84,7.8868]
[1742565822791,0.05285816,126.86,126.84,7.8868]
[1742565823293,0.05285816,126.86,126.85,7.8863]
[1742565823696,0.05285816,126.86,126.83,0.05163007]
[1742565823891,0.05285816,126.86,126.84,7.8866]
[1742565825103,7.93855816,126.86,126.84,7.8866]
[1742565825498,0.05285816,126.86,126.84,7.8866]
[1742565826097,0.05285816,126.86,126.83,0.05163007]
[1742565826298,7.8866,126.85,126.83,0.05163007]
[1742565826598,7.8866,126.85,126.83,7.93913007]
[1742565827001,7.93875816,126.86,126.83,7.93913007]
[1742565827202,0.05285816,126.86,126.84,7.8868]
[1742565828604,7.93865816,126.86,126.84,7.8868]
[1742565828800,0.05285816,126.86,126.85,38.4863]
[1742565828997,36.3002,126.92,126.85,30.6]
[1742565829204,7.8834,126.9,126.85,30.6]
[1742565829600,30.6,126.92,126.85,30.6]
[1742565829803,7.8829,126.91,126.88,7.884]
[1742565830102,7.94314318,126.91,126.88,7.93503817]
[1742565830302,0.06024318,126.91,126.88,0.05103817]
[1742565830494,7.8834,126.9,126.88,0.05103817]
[1742565831300,7.8834,126.9,126.88,7.93533817]
[1742565831509,7.8838,126.89,126.88,0.05103817]
[1742565832805,38.4838,126.89,126.88,3.817e-05]
[1742565833801,7.8838,126.89,126.88,3.817e-05]
[1742565841906,40.11280007,126.89,126.88,3.817e-05]
[1742565842208,32.22900007,126.89,126.81,290.7]
[1742565842407,36.3528,126.88,126.81,290.7]
[1742565842905,7.8881,126.82,126.81,260.1]
[1742565843112,36.3528,126.88,126.81,260.1]
[1742565843313,0.05263291,126.83,126.81,260.1]
[1742565843505,36.3528,126.88,126.81,260.1]
[1742565843703,0.05851345,126.83,126.81,260.158423]
[1742565843907,30.6,126.88,126.81,260.158423]
[1742565844613,7.8867,126.85,126.81,260.158423]
[1742565845005,0.05542554,126.84,126.81,260.158423]
[1742565845206,7.94242554,126.84,126.81,260.158423]
[1742565845401,0.05542554,126.84,126.81,260.158423]
[1742565847209,7.94242554,126.84,126.81,260.158423]
[1742565847414,0.05542554,126.84,126.81,260.158423]
[1742565847909,0.05542554,126.84,126.81,268.047123]
[1742565848511,0.05542554,126.84,126.81,260.158423]
[1742565848714,0.05542554,126.84,126.81,0.058423]
[1742565849312,7.94262554,126.84,126.81,0.058423]
[1742565849517,0.05542554,126.84,126.81,0.058423]
[1742565849712,7.8881,126.82,126.81,0.058423]
[1742565850114,38.4881,126.82,126.81,0.058423]
[1742565850310,38.4881,126.82,126.76,290.8]
[1742565850311,7.8901,126.79,126.76,290.8]
[1742565850712,7.8907,126.78,126.76,260.2]
[1742565851018,30.6,126.82,126.76,260.2]
[1742565851419,0.05301715,126.8,126.78,0.05097947]
[1742565852312,30.6,126.79,126.75,10.76934448]
[1742565852507,62.84046658,126.79,126.75,10.76934448]
[1742565852711,7.8924,126.76,126.71,290.82]
[1742565852919,62.84046658,126.79,126.71,290.82]
[1742565853421,62.84046658,126.79,126.71,260.22]
[1742565853617,0.06051305,126.76,126.74,0.05631555]
[1742565853917,7.8925,126.75,126.74,0.05631555]
[1742565854220,0.06051305,126.76,126.74,0.05631555]
[1742565854613,0.06051305,126.76,126.75,7.8925]
[1742565860124,0.06051305,126.76,126.74,0.05631555]
[1742565860524,7.8925,126.75,126.74,0.05631555]
[1742565861721,30.66051305,126.76,126.69,38.4959]
[1742565862021,30.6,126.76,126.69,7.8959]
[1742565862223,30.6,126.76,126.67,38.9564]
[1742565862418,30.6,126.76,126.68,30.62]
[1742565862919,30.6,126.76,126.71,0.05437379]
[1742565862920,0.05317356,126.73,126.71,0.05437379]
[1742565863319,7.94737356,126.73,126.71,0.05437379]
[1742565863521,0.05317356,126.73,126.71,0.05437379]
[1742565864024,7.8944,126.72,126.71,0.05437379]
[1742565865317,0.05317356,126.73,126.71,0.05437379]
[1742565865817,7.8944,126.72,126.71,0.05437379]
[1742565872330,7.94717356,126.73,126.71,0.05437379]
[1742565872927,7.8944,126.72,126.71,0.05437379]
[1742565873326,0.05317356,126.73,126.72,7.8944]
[1742565873524,2.7759,126.79,126.71,50.8635684]
[1742565873832,56.51639461,126.82,126.76,7.8915]
[1742565874231,56.51639461,126.82,126.75,30.62]
[1742565874431,7.8912,126.78,126.75,38.5125]
[1742565874629,5.7072,126.82,126.75,50.80919461]
[1742565874826,0.05176655,126.78,126.75,50.86007349]
[1742565875030,0.05176655,126.78,126.77,7.8912]
[1742565875432,0.05176655,126.78,126.77,28.08039461]
[1742565875632,33.386,126.87,126.77,28.06919461]
[1742565875933,7.8855,126.87,126.81,20.18919461]
[1742565876135,10.89925725,126.88,126.84,7.8866]
[1742565876332,10.89925725,126.88,126.82,30.62]
[1742565876631,7.8853,126.87,126.84,7.8866]
[1742565876833,0.056519,126.86,126.84,0.0576785]
[1742565877027,0.056519,126.86,126.85,30.62]
[1742565877427,0.056519,126.86,126.85,38.5063]
[1742565877734,10.89925725,126.88,126.85,30.62]
[1742565878323,68.61765288,126.93,126.85,30.62]
[1742565878833,0.0509079,126.9,126.88,0.05647887]
[1742565879235,7.8838,126.89,126.88,0.05647887]
[1742565881737,0.0509079,126.9,126.88,0.05647887]
[1742565882239,7.8838,126.89,126.88,0.05647887]
[1742565882834,7.8838,126.89,126.88,7.887e-05]
[1742565883041,35.11595288,126.89,126.8,2.9801]
[1742565883340,35.11595288,126.89,126.81,30.6]
[1742565884236,0.05044638,126.86,126.84,0.05518012]
[1742565884438,7.8863,126.85,126.84,0.05518012]
[1742565884636,7.8863,126.85,126.84,8.012e-05]
[1742565885142,40.10315288,126.85,126.84,8.012e-05]
[1742565885337,7.8894,126.8,126.79,260.28]
[1742565885836,7.8894,126.8,126.77,30.6]
[1742565885837,7.8898,126.8,126.77,30.6]
[1742565886038,30.6,126.83,126.77,30.6]
[1742565886342,7.8906,126.78,126.77,30.6]
[1742565888438,7.8903,126.79,126.77,30.6]
[1742565888840,0.05006604,126.81,126.77,30.6]
[1742565889045,7.8912,126.77,126.76,0.05204005]
[1742565889239,7.8912,126.77,126.76,30.65204005]
[1742565890140,7.94915658,126.78,126.76,30.65204005]
[1742565890443,0.05825658,126.78,126.76,30.65204005]
[1742565890848,0.05825658,126.78,126.76,41.32144005]
[1742565891046,0.05825658,126.78,126.76,33.43004005]
[1742565891844,30.6,126.84,126.76,33.43004005]
[1742565892042,30.6,126.84,126.76,33.378]
[1742565892246,7.8899,126.8,126.76,33.378]
[1742565892545,30.6,126.84,126.76,33.378]
[1742565892748,30.6,126.84,126.76,41.2695]
[1742565892938,0.05110299,126.81,126.79,0.05303322]
[1742565893139,0.05110299,126.81,126.79,30.65303322]
[1742565893441,0.05110299,126.81,126.8,7.8894]
[1742565893841,0.05110299,126.81,126.79,30.65303322]
[1742565894346,0.05110299,126.81,126.8,7.8894]
[1742565894549,0.05110299,126.81,126.79,30.65303322]
[1742565895045,0.05110299,126.81,126.8,7.8894]
[1742565897759,2.8991,126.89,126.8,268.18]
[1742565897954,2.8991,126.89,126.82,20.15080442]
[1742565898156,7.8854,126.87,126.83,30.6]